[Event "*** Titled Tuesday Blitz"]
[Site "Chess.com"]
[Date "2021.04.06"]
[Round "7"]
[White "AlexTriapishko"]
[Black "szabadaba"]
[Result "0-1"]
[WhiteElo "2818"]
[BlackElo "2699"]
[TimeControl "180+1"]
[EndTime "11:18:25 PDT"]
[Termination "szabadaba won on time"]

1. Nf3 {[%clk 0:01:57.5]} 1... d5 {[%clk 0:02:58.9]} 2. g3 {[%clk 0:01:58.4]}
2... Nf6 {[%clk 0:02:58.9]} 3. Bg2 {[%clk 0:01:58.8]} 3... e6 {[%clk 0:02:59.2]}
4. c4 {[%clk 0:01:59.1]} 4... Be7 {[%clk 0:02:59]} 5. O-O {[%clk 0:01:59.2]}
5... O-O {[%clk 0:02:58.9]} 6. d4 {[%clk 0:01:59.8]} 6... dxc4 {[%clk
0:02:58.3]} 7. Qc2 {[%clk 0:02:00.2]} 7... a6 {[%clk 0:02:58]} 8. a4 {[%clk
0:01:59.4]} 8... Bd7 {[%clk 0:02:57.8]} 9. Qxc4 {[%clk 0:01:59.9]} 9... Bc6
{[%clk 0:02:57.6]} 10. Bg5 {[%clk 0:02:00.4]} 10... a5 {[%clk 0:02:50.7]} 11.
Nc3 {[%clk 0:01:54.9]} 11... Bxf3 {[%clk 0:02:40.5]} 12. Bxf3 {[%clk 0:01:54]}
12... c6 {[%clk 0:02:40.4]} 13. Bxf6 {[%clk 0:01:53.8]} 13... Bxf6 {[%clk
0:02:39.6]} 14. e3 {[%clk 0:01:54.7]} 14... Na6 {[%clk 0:02:39.1]} 15. Kg2
{[%clk 0:01:50.9]} 15... Nb4 {[%clk 0:02:36.8]} 16. Ne4 {[%clk 0:01:46.4]} 16...
Be7 {[%clk 0:02:35.5]} 17. h4 {[%clk 0:01:41.7]} 17... Qb6 {[%clk 0:02:28.4]}
18. h5 {[%clk 0:01:23.2]} 18... Nd5 {[%clk 0:02:25.7]} 19. b3 {[%clk 0:01:06.8]}
19... Rfd8 {[%clk 0:02:22.2]} 20. Qc2 {[%clk 0:01:01.2]} 20... Rac8 {[%clk
0:02:18.6]} 21. Nd2 {[%clk 0:00:51.1]} 21... Nb4 {[%clk 0:02:09.2]} 22. Qe4
{[%clk 0:00:48]} 22... Nd5 {[%clk 0:01:52.5]} 23. Qd3 {[%clk 0:00:37.2]} 23...
c5 {[%clk 0:01:42.9]} 24. Nc4 {[%clk 0:00:33.9]} 24... Qb4 {[%clk 0:01:40.6]}
25. e4 {[%clk 0:00:20.9]} 25... Nc3 {[%clk 0:01:20.2]} 26. d5 {[%clk 0:00:20.5]}
26... exd5 {[%clk 0:01:19.9]} 27. exd5 {[%clk 0:00:20.5]} 27... Bf6 {[%clk
0:01:18.2]} 28. d6 {[%clk 0:00:18.5]} 28... b5 {[%clk 0:00:48.8]} 29. axb5
{[%clk 0:00:17.3]} 29... Nxb5 {[%clk 0:00:47.4]} 30. Ra4 {[%clk 0:00:13.2]}
30... Qc3 {[%clk 0:00:47]} 31. Qxc3 {[%clk 0:00:12.7]} 31... Bxc3 {[%clk
0:00:46.4]} 32. d7 {[%clk 0:00:08.9]} 32... Rc7 {[%clk 0:00:39.6]} 33. Bg4
{[%clk 0:00:04.5]} 33... Nd4 {[%clk 0:00:29.9]} 34. Nxa5 {[%clk 0:00:02.8]}
34... f5 {[%clk 0:00:23.9]} 35. Bf3 {[%clk 0:00:02.3]} 35... Rdxd7 {[%clk
0:00:21.1]} 0-1

[Event "*** Titled Tuesday Blitz"]
[Site "Chess.com"]
[Date "2021.04.06"]
[Round "7"]
[White "Chernobay_Artem"]
[Black "ARMQUEEN"]
[Result "1-0"]
[WhiteElo "2576"]
[BlackElo "2300"]
[TimeControl "180+1"]
[EndTime "11:18:25 PDT"]
[Termination "Chernobay_Artem won by checkmate"]

1. d4 {[%clk 0:03:00.9]} 1... Nf6 {[%clk 0:02:54.2]} 2. c4 {[%clk 0:03:01.2]}
2... c5 {[%clk 0:02:49.7]} 3. d5 {[%clk 0:03:01.1]} 3... g6 {[%clk 0:02:49.4]}
4. Nc3 {[%clk 0:03:00.9]} 4... Bg7 {[%clk 0:02:47]} 5. e4 {[%clk 0:03:01.4]}
5... d6 {[%clk 0:02:45.9]} 6. Nf3 {[%clk 0:03:00.5]} 6... O-O {[%clk 0:02:46]}
7. Be2 {[%clk 0:03:00.8]} 7... a6 {[%clk 0:02:44.9]} 8. O-O {[%clk 0:02:59.3]}
8... e6 {[%clk 0:02:40.6]} 9. a4 {[%clk 0:02:57.5]} 9... exd5 {[%clk 0:02:40.5]}
10. cxd5 {[%clk 0:02:58.4]} 10... Nbd7 {[%clk 0:02:40.2]} 11. Bf4 {[%clk
0:02:56.7]} 11... Qe7 {[%clk 0:02:39.6]} 12. Nd2 {[%clk 0:02:55.3]} 12... Ne8
{[%clk 0:02:36.1]} 13. Bg3 {[%clk 0:02:22.9]} 13... f5 {[%clk 0:02:33.5]} 14.
exf5 {[%clk 0:02:22.8]} 14... Rxf5 {[%clk 0:02:34.4]} 15. Bg4 {[%clk 0:02:19.3]}
15... Rf8 {[%clk 0:02:31.2]} 16. Be6+ {[%clk 0:02:15.2]} 16... Kh8 {[%clk
0:02:29.6]} 17. Nc4 {[%clk 0:02:06.3]} 17... Rb8 {[%clk 0:02:09.5]} 18. Ne4
{[%clk 0:01:45.6]} 18... Ne5 {[%clk 0:01:58.6]} 19. Nxe5 {[%clk 0:01:43.2]}
19... dxe5 {[%clk 0:01:56.6]} 20. Bxc8 {[%clk 0:01:42.1]} 20... Rxc8 {[%clk
0:01:57.5]} 21. d6 {[%clk 0:01:33.6]} 21... Qd7 {[%clk 0:01:56.4]} 22. Qd5
{[%clk 0:01:32.5]} 22... Rf5 {[%clk 0:01:43.6]} 23. Rfd1 {[%clk 0:01:12.1]}
23... b6 {[%clk 0:01:41.2]} 24. a5 {[%clk 0:01:12]} 24... Rc6 {[%clk 0:00:56.5]}
25. axb6 {[%clk 0:01:09.7]} 25... Rxb6 {[%clk 0:00:56.6]} 26. Qxc5 {[%clk
0:00:46.2]} 26... Rxb2 {[%clk 0:00:48]} 27. Rxa6 {[%clk 0:00:45.3]} 27... h6
{[%clk 0:00:45]} 28. Ra7 {[%clk 0:00:42]} 28... Qd8 {[%clk 0:00:42.8]} 29. d7
{[%clk 0:00:20.6]} 29... Kh7 {[%clk 0:00:41.6]} 30. h4 {[%clk 0:00:16.6]} 30...
Rf7 {[%clk 0:00:32.2]} 31. Qd5 {[%clk 0:00:12.8]} 31... Re7 {[%clk 0:00:20.3]}
32. Ra8 {[%clk 0:00:06.5]} 32... Rxd7 {[%clk 0:00:19.3]} 33. Rxd8 {[%clk
0:00:04.7]} 33... Rxd5 {[%clk 0:00:19.7]} 34. R1xd5 {[%clk 0:00:04.9]} 34... Nc7
{[%clk 0:00:20.6]} 35. R5d7 {[%clk 0:00:04.9]} 35... Ne6 {[%clk 0:00:21.1]} 36.
Nf6# {[%clk 0:00:05.5]} 1-0

[Event "*** Titled Tuesday Blitz"]
[Site "Chess.com"]
[Date "2021.04.06"]
[Round "7"]
[White "Andrakhanova"]
[Black "Trickov"]
[Result "0-1"]
[WhiteElo "2248"]
[BlackElo "2394"]
[TimeControl "180+1"]
[EndTime "11:18:25 PDT"]
[Termination "Trickov won on time"]

1. c4 {[%clk 0:02:58.5]} 1... c6 {[%clk 0:02:59.5]} 2. e4 {[%clk 0:02:57.9]}
2... d5 {[%clk 0:02:59.2]} 3. exd5 {[%clk 0:02:58.8]} 3... cxd5 {[%clk
0:02:59.2]} 4. d4 {[%clk 0:02:59.4]} 4... Nf6 {[%clk 0:02:59.1]} 5. Nc3 {[%clk
0:02:59.5]} 5... Nc6 {[%clk 0:02:59.2]} 6. Nf3 {[%clk 0:02:59.7]} 6... Bg4
{[%clk 0:02:58.4]} 7. cxd5 {[%clk 0:02:58.3]} 7... Nxd5 {[%clk 0:02:55.5]} 8.
Bc4 {[%clk 0:02:56.3]} 8... e6 {[%clk 0:02:49.8]} 9. O-O {[%clk 0:02:52.4]} 9...
Nb6 {[%clk 0:02:45.8]} 10. Bb5 {[%clk 0:02:51.8]} 10... Rc8 {[%clk 0:02:36.5]}
11. h3 {[%clk 0:02:29.5]} 11... Bxf3 {[%clk 0:02:30]} 12. Qxf3 {[%clk
0:02:23.8]} 12... a6 {[%clk 0:02:29.5]} 13. Bxc6+ {[%clk 0:02:17.4]} 13... Rxc6
{[%clk 0:02:29.1]} 14. Rd1 {[%clk 0:01:48.2]} 14... Nd5 {[%clk 0:02:26]} 15. Ne4
{[%clk 0:01:32.4]} 15... Be7 {[%clk 0:02:24.5]} 16. a3 {[%clk 0:01:32.1]} 16...
O-O {[%clk 0:02:23.2]} 17. Bd2 {[%clk 0:01:31.1]} 17... Qb6 {[%clk 0:02:15]} 18.
Nc3 {[%clk 0:01:19.8]} 18... Rd8 {[%clk 0:02:07.5]} 19. b4 {[%clk 0:01:06.3]}
19... Qxd4 {[%clk 0:01:47.6]} 20. Be1 {[%clk 0:00:35.5]} 20... Qf6 {[%clk
0:01:19.7]} 21. Nxd5 {[%clk 0:00:26.9]} 21... exd5 {[%clk 0:01:09]} 22. Qd3
{[%clk 0:00:16.6]} 22... g6 {[%clk 0:00:55.6]} 23. Bd2 {[%clk 0:00:15.4]} 23...
h5 {[%clk 0:00:51]} 24. Be3 {[%clk 0:00:14.8]} 24... Rc3 {[%clk 0:00:48.5]} 25.
Qd2 {[%clk 0:00:13]} 25... Rc4 {[%clk 0:00:34.1]} 26. Bd4 {[%clk 0:00:12.6]}
26... Qf5 {[%clk 0:00:31.6]} 27. Qb2 {[%clk 0:00:08.2]} 27... Rc2 {[%clk
0:00:30]} 28. Qb3 {[%clk 0:00:07.3]} 28... Bf6 {[%clk 0:00:26.8]} 29. Qe3 {[%clk
0:00:03.4]} 29... Bxd4 {[%clk 0:00:21.8]} 30. Rxd4 {[%clk 0:00:04]} 30... Kg7
{[%clk 0:00:20.5]} 31. Rad1 {[%clk 0:00:03.6]} 31... Re8 {[%clk 0:00:19.5]} 32.
Qd3 {[%clk 0:00:02.5]} 32... Qxd3 {[%clk 0:00:17.5]} 33. R4xd3 {[%clk
0:00:01.2]} 33... Ree2 {[%clk 0:00:18]} 0-1

[Event "*** Titled Tuesday Blitz"]
[Site "Chess.com"]
[Date "2021.04.06"]
[Round "7"]
[White "MarcoRiehle"]
[Black "Isajevsky_Anton"]
[Result "0-1"]
[WhiteElo "2663"]
[BlackElo "2573"]
[TimeControl "180+1"]
[EndTime "11:18:26 PDT"]
[Termination "Isajevsky_Anton won by resignation"]

1. e4 {[%clk 0:03:00.9]} 1... c5 {[%clk 0:03:00]} 2. a3 {[%clk 0:03:00.4]} 2...
d6 {[%clk 0:02:50.6]} 3. b4 {[%clk 0:02:48.9]} 3... Nf6 {[%clk 0:02:50.6]} 4.
Nc3 {[%clk 0:02:46.8]} 4... Nc6 {[%clk 0:02:50.3]} 5. b5 {[%clk 0:02:46.1]} 5...
Nd4 {[%clk 0:02:48.6]} 6. Nge2 {[%clk 0:02:45.4]} 6... Bg4 {[%clk 0:02:27.8]} 7.
h3 {[%clk 0:02:40.6]} 7... Bh5 {[%clk 0:02:26.9]} 8. d3 {[%clk 0:02:38.8]} 8...
e6 {[%clk 0:02:17.2]} 9. Bd2 {[%clk 0:02:34.8]} 9... d5 {[%clk 0:02:05.6]} 10.
Be3 {[%clk 0:02:20.7]} 10... Nxe2 {[%clk 0:01:30.2]} 11. Bxe2 {[%clk 0:02:18]}
11... Bxe2 {[%clk 0:01:28.8]} 12. Nxe2 {[%clk 0:02:18.9]} 12... dxe4 {[%clk
0:01:29.2]} 13. O-O {[%clk 0:02:18.2]} 13... Be7 {[%clk 0:01:28]} 14. Ng3 {[%clk
0:02:14.2]} 14... exd3 {[%clk 0:01:27.4]} 15. cxd3 {[%clk 0:02:15.1]} 15... O-O
{[%clk 0:01:27.2]} 16. Qf3 {[%clk 0:02:10.5]} 16... Qd5 {[%clk 0:01:21]} 17. Qe2
{[%clk 0:02:05.5]} 17... Rfd8 {[%clk 0:01:19.9]} 18. Rfd1 {[%clk 0:02:04.9]}
18... Bd6 {[%clk 0:01:02]} 19. a4 {[%clk 0:01:55.7]} 19... Rac8 {[%clk
0:01:00.5]} 20. Rac1 {[%clk 0:01:49.9]} 20... Be5 {[%clk 0:00:56.9]} 21. Rc4
{[%clk 0:01:46.3]} 21... b6 {[%clk 0:00:55.7]} 22. Ne4 {[%clk 0:01:34.9]} 22...
Nxe4 {[%clk 0:00:54.4]} 23. Rxe4 {[%clk 0:01:34.3]} 23... Bf6 {[%clk 0:00:54.2]}
24. Rf4 {[%clk 0:01:27.5]} 24... c4 {[%clk 0:00:48.9]} 25. d4 {[%clk 0:01:27.5]}
25... c3 {[%clk 0:00:48.3]} 26. Rc1 {[%clk 0:01:23.3]} 26... e5 {[%clk
0:00:37.8]} 27. dxe5 {[%clk 0:01:21.3]} 27... Bxe5 {[%clk 0:00:37.7]} 28. Rf5
{[%clk 0:00:58.3]} 28... Bh2+ {[%clk 0:00:36.5]} 29. Kxh2 {[%clk 0:00:57.6]}
29... Qxf5 {[%clk 0:00:37.4]} 30. Rc2 {[%clk 0:00:54.3]} 30... Qd3 {[%clk
0:00:35.3]} 31. Qxd3 {[%clk 0:00:51.5]} 31... Rxd3 {[%clk 0:00:36.2]} 32. Kg3
{[%clk 0:00:51.9]} 32... Rd1 {[%clk 0:00:30]} 33. a5 {[%clk 0:00:49.6]} 33...
Rb1 {[%clk 0:00:27.7]} 34. axb6 {[%clk 0:00:49.5]} 34... axb6 {[%clk 0:00:28]}
35. Bxb6 {[%clk 0:00:50]} 35... Rb2 {[%clk 0:00:26.8]} 36. Rc1 {[%clk
0:00:47.8]} 36... c2 {[%clk 0:00:27.1]} 37. Be3 {[%clk 0:00:47.9]} 37... Rxb5
{[%clk 0:00:27.3]} 38. Kf3 {[%clk 0:00:47.2]} 38... Rb1 {[%clk 0:00:27.4]} 39.
Ke2 {[%clk 0:00:47.7]} 39... Rxc1 {[%clk 0:00:27.7]} 40. Bxc1 {[%clk 0:00:48.6]}
40... Rd8 {[%clk 0:00:28]} 41. Bd2 {[%clk 0:00:47]} 41... f5 {[%clk 0:00:28]}
42. f3 {[%clk 0:00:45.6]} 42... Kf7 {[%clk 0:00:27.9]} 43. g3 {[%clk 0:00:46]}
43... h6 {[%clk 0:00:27.5]} 44. Ke3 {[%clk 0:00:46.1]} 44... g5 {[%clk
0:00:26.7]} 45. Ke2 {[%clk 0:00:46.6]} 45... f4 {[%clk 0:00:24.2]} 46. g4 {[%clk
0:00:46.1]} 46... Ke6 {[%clk 0:00:23.6]} 47. Ke1 {[%clk 0:00:40.4]} 47... Kd5
{[%clk 0:00:21.1]} 48. Ke2 {[%clk 0:00:39.1]} 48... Kc4 {[%clk 0:00:21.6]} 49.
h4 {[%clk 0:00:38.8]} 49... Kb3 {[%clk 0:00:21]} 50. hxg5 {[%clk 0:00:38.7]}
50... hxg5 {[%clk 0:00:21.9]} 0-1

[Event "*** Titled Tuesday Blitz"]
[Site "Chess.com"]
[Date "2021.04.06"]
[Round "7"]
[White "LEGENYA1998"]
[Black "serena-maria"]
[Result "1-0"]
[WhiteElo "2232"]
[BlackElo "2339"]
[TimeControl "180+1"]
[EndTime "11:18:34 PDT"]
[Termination "LEGENYA1998 won by checkmate"]

1. e4 {[%clk 0:03:00.9]} 1... c5 {[%clk 0:02:59.3]} 2. Nf3 {[%clk 0:03:00.4]}
2... d6 {[%clk 0:03:00]} 3. d4 {[%clk 0:02:58.2]} 3... cxd4 {[%clk 0:03:00.9]}
4. Nxd4 {[%clk 0:02:55.3]} 4... Nf6 {[%clk 0:03:01.2]} 5. Nc3 {[%clk 0:02:54.8]}
5... g6 {[%clk 0:03:01.4]} 6. Be3 {[%clk 0:02:50.8]} 6... Bg7 {[%clk 0:03:01.8]}
7. f3 {[%clk 0:02:46]} 7... O-O {[%clk 0:03:01.6]} 8. Bc4 {[%clk 0:02:43.5]}
8... Nc6 {[%clk 0:03:01.7]} 9. Qd2 {[%clk 0:02:40.4]} 9... Nd7 {[%clk
0:02:59.4]} 10. O-O-O {[%clk 0:02:36.8]} 10... Nb6 {[%clk 0:02:55.1]} 11. Be2
{[%clk 0:02:32.7]} 11... Na5 {[%clk 0:02:52.6]} 12. b3 {[%clk 0:02:25.5]} 12...
Bd7 {[%clk 0:02:50.8]} 13. h4 {[%clk 0:02:22.9]} 13... Rc8 {[%clk 0:02:48.3]}
14. h5 {[%clk 0:02:21]} 14... Qc7 {[%clk 0:02:22.4]} 15. Kb2 {[%clk 0:01:54.1]}
15... Nbc4+ {[%clk 0:01:43.8]} 16. bxc4 {[%clk 0:01:46.2]} 16... Nxc4+ {[%clk
0:01:44.7]} 17. Bxc4 {[%clk 0:01:43]} 17... Qxc4 {[%clk 0:01:45.6]} 18. Nd5
{[%clk 0:01:38]} 18... Be6 {[%clk 0:01:39]} 19. hxg6 {[%clk 0:01:32.3]} 19...
fxg6 {[%clk 0:01:34.1]} 20. Nxe7+ {[%clk 0:01:27.1]} 20... Kf7 {[%clk
0:01:33.9]} 21. Nd5 {[%clk 0:01:20.6]} 21... Rc5 {[%clk 0:01:26.4]} 22. Rxh7
{[%clk 0:01:08.4]} 22... Bxd5 {[%clk 0:00:49.8]} 23. exd5 {[%clk 0:01:06.2]}
23... Qxd5 {[%clk 0:00:22.3]} 24. Bh6 {[%clk 0:00:49]} 24... Rg8 {[%clk
0:00:22.3]} 25. Qf4+ {[%clk 0:00:41.1]} 25... Ke8 {[%clk 0:00:21.3]} 26. Rxg7
{[%clk 0:00:38.9]} 26... Rb5+ {[%clk 0:00:20.9]} 27. Nxb5 {[%clk 0:00:36.1]}
27... Qxb5+ {[%clk 0:00:20]} 28. Kc1 {[%clk 0:00:34.5]} 28... Rxg7 {[%clk
0:00:19.8]} 29. Bxg7 {[%clk 0:00:33.1]} 29... Qc5 {[%clk 0:00:19.8]} 30. Qxd6
{[%clk 0:00:26.9]} 30... Qe3+ {[%clk 0:00:19.8]} 31. Qd2 {[%clk 0:00:26.7]}
31... Qa3+ {[%clk 0:00:19.6]} 32. Bb2 {[%clk 0:00:26.8]} 32... Qxa2 {[%clk
0:00:19.8]} 33. Qd7+ {[%clk 0:00:23.3]} 33... Kf8 {[%clk 0:00:19.4]} 34. Qg7+
{[%clk 0:00:20.1]} 34... Ke8 {[%clk 0:00:19.4]} 35. Re1+ {[%clk 0:00:20.1]}
35... Kd8 {[%clk 0:00:19.7]} 36. Qf8+ {[%clk 0:00:18.1]} 36... Kd7 {[%clk
0:00:18.7]} 37. Re7+ {[%clk 0:00:18.7]} 37... Kc6 {[%clk 0:00:19]} 38. Qc8+
{[%clk 0:00:18.5]} 38... Kb6 {[%clk 0:00:18.4]} 39. Rxb7+ {[%clk 0:00:18]} 39...
Ka6 {[%clk 0:00:16.3]} 40. Rb3+ {[%clk 0:00:16.7]} 40... Ka5 {[%clk 0:00:11.9]}
41. Bc3+ {[%clk 0:00:16.7]} 41... Ka4 {[%clk 0:00:11.9]} 42. Qa6# {[%clk
0:00:16.9]} 1-0

[Event "*** Titled Tuesday Blitz"]
[Site "Chess.com"]
[Date "2021.04.06"]
[Round "7"]
[White "mikolka1985"]
[Black "DamianoLew95"]
[Result "0-1"]
[WhiteElo "2660"]
[BlackElo "2570"]
[TimeControl "180+1"]
[EndTime "11:18:35 PDT"]
[Termination "DamianoLew95 won by resignation"]

1. d4 {[%clk 0:03:00.9]} 1... d5 {[%clk 0:03:00]} 2. c4 {[%clk 0:03:00.6]} 2...
c6 {[%clk 0:03:00.4]} 3. Nf3 {[%clk 0:02:59.3]} 3... Nf6 {[%clk 0:03:00]} 4. Nc3
{[%clk 0:02:58.9]} 4... e6 {[%clk 0:02:59.4]} 5. Bg5 {[%clk 0:02:58.1]} 5...
Nbd7 {[%clk 0:02:59.5]} 6. e3 {[%clk 0:02:57.5]} 6... Qa5 {[%clk 0:02:58.9]} 7.
cxd5 {[%clk 0:02:56.8]} 7... Nxd5 {[%clk 0:02:52.3]} 8. Rc1 {[%clk 0:02:55.8]}
8... Bb4 {[%clk 0:02:51.5]} 9. a3 {[%clk 0:02:52.4]} 9... Nxc3 {[%clk
0:02:30.1]} 10. axb4 {[%clk 0:02:50.6]} 10... Nxd1 {[%clk 0:02:28.8]} 11. bxa5
{[%clk 0:02:48]} 11... Nxb2 {[%clk 0:02:28.9]} 12. Ra1 {[%clk 0:02:43.9]} 12...
b5 {[%clk 0:02:26.7]} 13. Rc1 {[%clk 0:01:51.2]} 13... Bb7 {[%clk 0:02:14.1]}
14. Nd2 {[%clk 0:01:38.2]} 14... a6 {[%clk 0:02:07.6]} 15. Be2 {[%clk
0:01:36.6]} 15... Rc8 {[%clk 0:02:02.6]} 16. Rb1 {[%clk 0:01:36]} 16... Na4
{[%clk 0:02:00]} 17. Bf3 {[%clk 0:01:33.8]} 17... f6 {[%clk 0:01:54.2]} 18. Bh4
{[%clk 0:01:32.8]} 18... e5 {[%clk 0:01:49.9]} 19. Nb3 {[%clk 0:01:31.5]} 19...
Rc7 {[%clk 0:01:39.6]} 20. Kd2 {[%clk 0:01:30.2]} 20... c5 {[%clk 0:01:37.9]}
21. Bxb7 {[%clk 0:01:24.3]} 21... Rxb7 {[%clk 0:01:36.6]} 22. dxc5 {[%clk
0:01:24.3]} 22... Ndxc5 {[%clk 0:01:30.8]} 23. Nxc5 {[%clk 0:01:23.5]} 23...
Nxc5 {[%clk 0:01:31.7]} 24. Rhc1 {[%clk 0:01:23.4]} 24... Rc7 {[%clk 0:01:26.3]}
25. Kc3 {[%clk 0:01:13.7]} 25... Ke7 {[%clk 0:01:18.4]} 26. Kd2 {[%clk
0:01:11.2]} 26... Rhc8 {[%clk 0:01:15]} 27. Ke2 {[%clk 0:01:11]} 27... Ke6
{[%clk 0:01:08.9]} 28. f3 {[%clk 0:01:09.6]} 28... Na4 {[%clk 0:01:08.5]} 29.
Rxc7 {[%clk 0:01:08]} 29... Rxc7 {[%clk 0:01:09.4]} 30. Ra1 {[%clk 0:01:04.1]}
30... Rc2+ {[%clk 0:01:07.7]} 31. Kf1 {[%clk 0:01:03.3]} 31... Nc3 {[%clk
0:00:47.5]} 32. Be1 {[%clk 0:01:02.4]} 32... b4 {[%clk 0:00:46]} 33. Bxc3 {[%clk
0:00:59]} 33... Rxc3 {[%clk 0:00:45.5]} 34. Ra4 {[%clk 0:00:58.3]} 34... Rc4
{[%clk 0:00:42.2]} 35. Ke2 {[%clk 0:00:57]} 35... Kd5 {[%clk 0:00:41.1]} 36. Kd3
{[%clk 0:00:55.4]} 36... Kc5 {[%clk 0:00:38.8]} 37. Ra1 {[%clk 0:00:50.9]} 37...
Rc3+ {[%clk 0:00:32.7]} 38. Kd2 {[%clk 0:00:50.5]} 38... Kc4 {[%clk 0:00:29.7]}
39. h4 {[%clk 0:00:47.1]} 39... Rd3+ {[%clk 0:00:29.5]} 40. Ke2 {[%clk
0:00:46.2]} 40... Rd7 {[%clk 0:00:25.7]} 41. h5 {[%clk 0:00:38.6]} 41... h6
{[%clk 0:00:24.6]} 42. g4 {[%clk 0:00:31.6]} 42... b3 {[%clk 0:00:23.4]} 43.
Rc1+ {[%clk 0:00:27.5]} 43... Kb4 {[%clk 0:00:23.3]} 44. Rc8 {[%clk 0:00:24.7]}
44... b2 {[%clk 0:00:20.5]} 45. Rb8+ {[%clk 0:00:24.5]} 45... Ka3 {[%clk
0:00:20.7]} 46. f4 {[%clk 0:00:20.9]} 46... exf4 {[%clk 0:00:20.4]} 47. exf4
{[%clk 0:00:20.7]} 47... Ka2 {[%clk 0:00:20.8]} 0-1

[Event "*** Titled Tuesday Blitz"]
[Site "Chess.com"]
[Date "2021.04.06"]
[Round "7"]
[White "rynos0411"]
[Black "jacky72"]
[Result "0-1"]
[WhiteElo "2445"]
[BlackElo "2706"]
[TimeControl "180+1"]
[EndTime "11:18:35 PDT"]
[Termination "jacky72 won by checkmate"]

1. d4 {[%clk 0:03:00.9]} 1... Nf6 {[%clk 0:02:47.5]} 2. c4 {[%clk 0:03:00.3]}
2... g6 {[%clk 0:02:45.7]} 3. Nc3 {[%clk 0:03:00]} 3... Bg7 {[%clk 0:02:46.5]}
4. e4 {[%clk 0:02:59.9]} 4... O-O {[%clk 0:02:47.4]} 5. Be3 {[%clk 0:02:57.7]}
5... d6 {[%clk 0:02:47.7]} 6. h3 {[%clk 0:02:57.9]} 6... c5 {[%clk 0:02:46.8]}
7. Nf3 {[%clk 0:02:55.3]} 7... cxd4 {[%clk 0:02:45.3]} 8. Nxd4 {[%clk
0:02:54.7]} 8... b6 {[%clk 0:02:46.2]} 9. Bd3 {[%clk 0:02:49.7]} 9... Bb7 {[%clk
0:02:47.1]} 10. O-O {[%clk 0:02:49.6]} 10... Nbd7 {[%clk 0:02:48]} 11. Bc2
{[%clk 0:02:48.6]} 11... Rc8 {[%clk 0:02:48.9]} 12. b3 {[%clk 0:02:48.5]} 12...
Nc5 {[%clk 0:02:48.1]} 13. f3 {[%clk 0:02:45.9]} 13... Nfd7 {[%clk 0:02:48.6]}
14. Rc1 {[%clk 0:02:45.4]} 14... Ne5 {[%clk 0:02:47.9]} 15. Qd2 {[%clk
0:02:42.8]} 15... Nc6 {[%clk 0:02:48.1]} 16. Nxc6 {[%clk 0:02:37.9]} 16... Bxc6
{[%clk 0:02:48.3]} 17. Bh6 {[%clk 0:02:37.9]} 17... Bxh6 {[%clk 0:02:48.4]} 18.
Qxh6 {[%clk 0:02:37.8]} 18... Qd7 {[%clk 0:02:41.5]} 19. Rfd1 {[%clk 0:02:30.3]}
19... Qe6 {[%clk 0:02:41]} 20. b4 {[%clk 0:02:12.8]} 20... Qxc4 {[%clk
0:02:29.4]} 21. bxc5 {[%clk 0:02:09.3]} 21... Qxc3 {[%clk 0:02:29.4]} 22. Bb3
{[%clk 0:02:08.5]} 22... Qe5 {[%clk 0:02:21.6]} 23. cxd6 {[%clk 0:02:08.3]}
23... exd6 {[%clk 0:02:22.5]} 24. h4 {[%clk 0:02:01.8]} 24... Bb7 {[%clk
0:02:21]} 25. h5 {[%clk 0:01:59.7]} 25... d5 {[%clk 0:01:43.1]} 26. hxg6 {[%clk
0:01:49.8]} 26... hxg6 {[%clk 0:01:39.4]} 27. Rxc8 {[%clk 0:01:49.2]} 27... Rxc8
{[%clk 0:01:38.9]} 28. exd5 {[%clk 0:01:48.3]} 28... Rd8 {[%clk 0:01:31.8]} 29.
Qd2 {[%clk 0:01:24.4]} 29... Rd6 {[%clk 0:01:30.1]} 30. Re1 {[%clk 0:01:20]}
30... Qf6 {[%clk 0:01:27.3]} 31. Qh6 {[%clk 0:01:12.7]} 31... Rd8 {[%clk
0:01:26.9]} 32. Re4 {[%clk 0:01:09.1]} 32... Qa1+ {[%clk 0:01:19.9]} 33. Kh2
{[%clk 0:01:08]} 33... Qh8 {[%clk 0:01:20.4]} 34. Qxh8+ {[%clk 0:00:58.8]} 34...
Kxh8 {[%clk 0:01:21.3]} 35. Ra4 {[%clk 0:00:43.6]} 35... a5 {[%clk 0:01:17.8]}
36. Rf4 {[%clk 0:00:42.1]} 36... Kg7 {[%clk 0:01:17.3]} 37. Kg1 {[%clk
0:00:37.1]} 37... Rd7 {[%clk 0:01:13]} 38. Kf2 {[%clk 0:00:31.7]} 38... Bxd5
{[%clk 0:01:11]} 39. Rd4 {[%clk 0:00:29.3]} 39... Be6 {[%clk 0:01:08.1]} 40.
Rxd7 {[%clk 0:00:22.9]} 40... Bxd7 {[%clk 0:01:09]} 41. Ke3 {[%clk 0:00:23.6]}
41... Kf6 {[%clk 0:01:07.8]} 42. Kd4 {[%clk 0:00:23.9]} 42... Be6 {[%clk
0:01:07.9]} 43. Bxe6 {[%clk 0:00:20.8]} 43... Kxe6 {[%clk 0:01:03]} 44. Kc4
{[%clk 0:00:20.2]} 44... Kd6 {[%clk 0:01:01.9]} 45. Kb5 {[%clk 0:00:19.6]} 45...
Kc7 {[%clk 0:01:02.4]} 46. f4 {[%clk 0:00:15.9]} 46... f5 {[%clk 0:00:58.2]} 47.
a4 {[%clk 0:00:12.4]} 47... Kb7 {[%clk 0:00:58.4]} 48. Kc4 {[%clk 0:00:12.5]}
48... Kc6 {[%clk 0:00:58.7]} 49. Kd4 {[%clk 0:00:13]} 49... b5 {[%clk
0:00:58.8]} 50. axb5+ {[%clk 0:00:13.3]} 50... Kxb5 {[%clk 0:00:59.7]} 51. Kc3
{[%clk 0:00:13.4]} 51... a4 {[%clk 0:01:00.4]} 52. Kb2 {[%clk 0:00:13.2]} 52...
Kb4 {[%clk 0:01:00.5]} 53. Kc2 {[%clk 0:00:12.9]} 53... a3 {[%clk 0:01:00.5]}
54. Kb1 {[%clk 0:00:13.3]} 54... Kb3 {[%clk 0:01:00.6]} 55. Ka1 {[%clk
0:00:13.3]} 55... a2 {[%clk 0:00:57.6]} 56. g3 {[%clk 0:00:13.4]} 56... Ka3
{[%clk 0:00:57.2]} 57. g4 {[%clk 0:00:11.6]} 57... fxg4 {[%clk 0:00:57.6]} 58.
f5 {[%clk 0:00:12.5]} 58... g3 {[%clk 0:00:55.9]} 59. fxg6 {[%clk 0:00:12.6]}
59... g2 {[%clk 0:00:56.2]} 60. g7 {[%clk 0:00:13.5]} 60... g1=R# {[%clk
0:00:56.1]} 0-1